fUST/lending_fUST_20240124
["ID","MTS","AMOUNT","RATE_DAILY","PERIOD"]
[312604113,1706064564790,-409.04175393,0.000255,2]
[312604114,1706064564810,-409.04175393,0.000255,2]
[312604115,1706064564829,-409.04175,0.000255,2]
[312604116,1706064564848,-151.0,0.00026278,2]
[312604117,1706064564868,-7898.814769,0.00026278,2]
[312604118,1706064564887,-7898.814769,0.00026278,2]
[312604119,1706064564907,-151.0,0.00026278,2]
[312604120,1706064564926,-635.75391476,0.00026659,2]
[312604121,1706064581437,-424.42859396,0.00039725,120]
[312604122,1706064581695,-175.57140604,0.00039725,120]
[312604123,1706064581883,-600.0,0.00039725,120]
[312604124,1706064581905,-305.57140604,0.00039725,120]
[312604163,1706064632500,-261.66809623,0.000274,2]
[312604165,1706064632511,-270.03236259,0.00027423,2]
[312604167,1706064632521,-5662.32094226,0.00027612,2]
[312604168,1706064632531,-266.562631,0.00027612,2]
[312604170,1706064632541,-266.562631,0.00027612,2]
[312604172,1706064632551,-620.78769574,0.00027992,2]
[312604174,1706064632561,-173.760204,0.00028046,2]
[312604176,1706064632573,-355.78511784,0.00028997,2]
[312604178,1706064632585,-462.89246104,0.00028997,2]
[312604180,1706064632594,-521.1860001,0.00028998,2]
[312604182,1706064632603,-155.0,0.00028999,2]
[312604184,1706064632613,-151.0,0.00029,2]
[312604186,1706064632622,-151.0,0.00029,2]
[312604188,1706064632631,-160.58513089,0.00029,2]
[312604199,1706064633055,147.46597538,0.00026278,2]
[312604200,1706064633078,3.53402462,0.00026278,2]
[312604201,1706064633328,151.31113023,0.00026659,2]
[312604225,1706064638510,-0.36057777,0.00026659,2]
[312604226,1706064638520,-154.82968734,0.00028996,2]
[312604228,1706064638530,-105.97750011,0.00029,2]
[312604229,1706064638539,-266.562631,0.00029,2]
[312604230,1706064638548,-266.562631,0.00029,2]
[312604231,1706064638558,-266.562631,0.00029,2]
[312604232,1706064638567,-151.062777,0.00029,2]
[312604233,1706064638576,-7898.814769,0.00029,2]
[312604234,1706064638585,-1092.11631866,0.00029,2]
[312604235,1706064638596,-4036.93073367,0.00029,2]
[312604236,1706064638628,-2769.76771667,0.00029,2]
[312604237,1706064638638,-7898.814769,0.00029,2]
[312604238,1706064638647,-7898.814769,0.00029,2]
[312604239,1706064638656,-1620.82236798,0.00029314,2]
[312604241,1706064638666,-153.0,0.00029315,2]
[312604242,1706064638675,-153.0,0.00029315,2]
[312604244,1706064638685,-153.0,0.00029315,2]
[312604245,1706064638695,-620.03938479,0.00029392,2]
[312604247,1706064638704,-1586.34104839,0.00029998,2]
[312604248,1706064638714,-327.41519523,0.00029998,2]
[312604250,1706064638724,-229.72431209,0.00029998,2]
[312604252,1706064638734,-727.47697385,0.00029998,2]
[312604253,1706064638743,-6752.98367731,0.00029998,2]
[312604254,1706064638753,-2049.34028443,0.00029998,2]
[312604255,1706064638762,-7898.814769,0.00029999,2]
[312604256,1706064638772,-7898.814769,0.00029999,2]
[312604257,1706064638781,-1110.97,0.00029999,2]
[312604258,1706064638790,-1110.97,0.00029999,2]
[312604259,1706064638800,-1110.97,0.00029999,2]
[312604260,1706064638810,-139234.85869816,0.0003,4]
[312604261,1706064638819,-688.69585509,0.0003,4]
[312604262,1706064638829,-154.84515485,0.0003,2]
[312604263,1706064638839,-151.0,0.0003,2]
[312604264,1706064638848,-151.0,0.0003,2]
[312604265,1706064638858,-266.562631,0.0003,2]
[312604266,1706064638867,-266.562631,0.0003,2]
[312604267,1706064638876,-266.562631,0.0003,2]
[312604268,1706064638886,-266.562631,0.0003,2]
[312604269,1706064638895,-7898.814769,0.0003,2]
[312604270,1706064638904,-7898.814769,0.0003,2]
[312604271,1706064638914,-7898.814769,0.0003,2]
[312604272,1706064638923,-7898.814769,0.0003,2]
[312604273,1706064638933,-7898.814769,0.0003,2]
[312604274,1706064638943,-7898.814769,0.0003,2]
[312604275,1706064638952,-151.0,0.0003,2]
[312604276,1706064638962,-153.0,0.00030078,2]
[312604277,1706064638971,-192.3198301,0.00030078,2]
[312604278,1706064638980,-185.843031,0.00030137,2]
[312604279,1706064638990,-266.562631,0.00030137,2]
[312604280,1706064638999,-266.562631,0.00030137,2]
[312604281,1706064639008,-155.0,0.00030369,2]
[312604282,1706064639018,-1200.0,0.00030429,4]
[312604283,1706064639027,-151.0,0.00030429,2]
[312604284,1706064639036,-151.0,0.00030429,2]
[312604285,1706064639046,-266.562631,0.00030429,2]
[312604286,1706064639055,-266.562631,0.00030429,2]
[312604287,1706064639064,-7898.814769,0.00030429,2]
[312604288,1706064639074,-7898.814769,0.00030429,2]
[312604289,1706064639083,-726.839435,0.0003079,2]
[312604290,1706064639093,-199.2894744,0.000309,2]
[312604291,1706064639102,-7898.814769,0.000309,2]
[312604292,1706064639111,-7898.814769,0.000309,2]
[312604293,1706064639120,-151.0,0.0003092,2]
[312604294,1706064639129,-151.0,0.0003092,2]
[312604295,1706064639138,-266.562631,0.0003092,2]
[312604296,1706064639147,-266.562631,0.0003092,2]
[312604297,1706064639156,-266.562631,0.0003092,2]
[312604298,1706064639166,-266.562624,0.0003092,2]
[312604299,1706064639175,-7898.814769,0.0003092,2]
[312604300,1706064639184,-7898.814768,0.0003092,2]
[312604301,1706064639194,-185.843031,0.0003092,2]
[312604302,1706064639203,-309.8154467,0.00031641,2]
[312604303,1706064639330,-185.843031,0.00031703,2]
[312604304,1706064639339,-155.91751336,0.00031739,2]
[312604305,1706064639349,-153.0,0.00031778,2]
[312604306,1706064639359,-153.0,0.00031778,2]
[312604307,1706064639368,-156.4031383,0.00031778,2]
[312604308,1706064639377,-153.0,0.00031778,2]
[312604309,1706064639386,-153.0,0.00031778,2]
[312604310,1706064639396,-153.0,0.00031778,2]
[312604311,1706064639405,-153.0,0.00031778,2]
[312604312,1706064639415,-153.0,0.00031778,2]
[312604313,1706064639425,-153.0,0.00031778,2]
[312604314,1706064639434,-153.0,0.00031778,2]
[312604315,1706064639443,-395.46875411,0.00031999,7]
[312604316,1706064639452,-526.80441614,0.00031999,7]
[312604317,1706064639462,-401.07940211,0.00031999,7]
[312604318,1706064639471,-641.46179919,0.00031999,7]
[312604319,1706064639480,-500.0,0.00031999,7]
[312604320,1706064639489,-500.0,0.00031999,7]
[312604321,1706064639498,-187.26299473,0.00031999,7]
[312604322,1706064639507,-500.0,0.00031999,7]
[312604323,1706064639516,-500.0,0.00031999,7]
[312604324,1706064639525,-500.0,0.00031999,7]
[312604325,1706064639535,-188.77792921,0.00031999,7]
[312604326,1706064639544,-17092.0567585,0.00032,15]
[312604327,1706064639553,-151.0,0.00032,2]
[312604328,1706064639562,-151.0,0.00032,2]
[312604329,1706064639572,-329.1437133,0.00032078,2]
[312604330,1706064639582,-233.7115945,0.00032078,2]
[312604331,1706064639591,-306.5986227,0.00032078,2]
[312604332,1706064639600,-153.0,0.00032078,2]
[312604333,1706064639609,-199.2894744,0.00032078,2]
[312604334,1706064639619,-199.2894744,0.00032078,2]
[312604335,1706064639628,-153.0,0.00032078,2]
[312604336,1706064639637,-199.2894744,0.00032078,2]
[312604337,1706064639646,-153.0,0.00032078,2]
[312604338,1706064639655,-199.2894744,0.00032078,2]
[312604339,1706064639665,-199.2894744,0.00032078,2]
[312604340,1706064639674,-153.0,0.00032078,2]
[312604341,1706064639683,-199.2894744,0.00032078,2]
[312604342,1706064639693,-199.2894744,0.00032078,2]
[312604343,1706064639702,-153.0,0.00032078,2]
[312604344,1706064639711,-199.2894744,0.00032078,2]
[312604345,1706064639721,-155.013309,0.00032352,2]
[312604346,1706064639730,-153.0,0.00032352,2]
[312604347,1706064639739,-153.0,0.00032352,2]
[312604348,1706064639749,-153.0,0.00032352,2]
[312604349,1706064639758,-153.0,0.00032352,2]
[312604350,1706064639767,-270.03236259,0.00032423,2]
[312604351,1706064639777,-185.843031,0.00032485,2]
[312604352,1706064639787,-199.2894744,0.000326,2]
[312604353,1706064639797,-199.2894744,0.000326,2]
[312604354,1706064639806,-199.2894744,0.000326,2]
[312604355,1706064639815,-199.2894744,0.000326,2]
[312604356,1706064639824,-199.2894744,0.000326,2]
[312604357,1706064639834,-199.2894744,0.000326,2]
[312604358,1706064639843,-199.2894744,0.000326,2]
[312604359,1706064639853,-199.2894744,0.000326,2]
[312604360,1706064639862,-151.0,0.00032877,2]
[312604361,1706064639871,-151.0,0.00032877,2]
[312604362,1706064639880,-151.0,0.00032877,2]
[312604363,1706064639890,-202.881189,0.00032877,2]
[312604364,1706064639899,-14226.6342871,0.00032877,2]
[312604365,1706064639908,-153.0,0.000329,2]
[312604366,1706064639917,-153.0,0.000329,2]
[312604367,1706064639927,-153.0,0.000329,2]
[312604368,1706064639936,-153.0,0.000329,2]
[312604369,1706064639946,-153.0,0.000329,2]
[312604370,1706064639956,-313.077971,0.000329,2]
[312604371,1706064639965,-199.2894744,0.000329,2]
[312604372,1706064639974,-1277.18291247,0.00033,2]
[312604373,1706064639983,-537.03951848,0.00033,4]
[312604374,1706064639993,-240.90294257,0.00033,4]
[312604375,1706064640002,-185.843031,0.00033268,2]
[312604376,1706064640011,-185.843031,0.00034051,2]
[312604377,1706064640021,-185.843031,0.00034834,2]
[312604378,1706064640030,-625.42102,0.00035184,2]
[312604379,1706064640040,-151.0,0.00035184,2]
[312604380,1706064640049,-151.0,0.00035615,2]
[312604381,1706064640058,-185.843031,0.00035616,2]
[312604382,1706064640068,-154.99648817,0.00035752,4]
[312604383,1706064640077,-185.843031,0.00036399,2]
[312604384,1706064640086,-5000.0,0.00036521,7]
[312604385,1706064640095,-185.843031,0.00037182,2]
[312604386,1706064640105,-270.03236259,0.00037423,2]
[312604387,1706064640115,-292.15997564,0.00037738,4]
[312604388,1706064640124,-1110.97,0.00037899,2]
[312604389,1706064640133,-1110.97,0.00037899,2]
[312604390,1706064640143,-1110.97,0.00037899,2]
[312604391,1706064640152,-1110.97,0.00037899,2]
[312604392,1706064640162,-1110.97,0.00037899,2]
[312604393,1706064640171,-1110.97,0.00037899,2]
[312604394,1706064640181,-267472.89614829,0.000379,10]
[312604395,1706064640190,-185.843031,0.00037965,2]
[312604396,1706064640200,-200.69400929,0.00038,14]
[312604397,1706064640209,-400.61174452,0.00038356,2]
[312604398,1706064640219,-3011.50324544,0.00038745,2]
[312604399,1706064640228,-185.843031,0.00038747,2]
[312604400,1706064640237,-150.145,0.00039142,2]
[312604401,1706064640246,-150.178,0.00039142,2]
[312604402,1706064640256,-185.843031,0.0003953,2]
[312604403,1706064640265,-1444.08507221,0.00039626,2]
[312604404,1706064640274,-155.0179885,0.00039724,4]
[312604405,1706064640283,-246.88334697,0.00039724,4]
[312604406,1706064640293,-437.74665343,0.00039724,4]
[312604407,1706064640302,-155.13476443,0.00039724,4]
[312604408,1706064640311,-9943.58201593,0.00039724,4]
[312604409,1706064640322,-4645.73534222,0.00039724,20]
[312604410,1706064640333,-155.93507205,0.00039724,4]
[312604411,1706064640342,-558.94372563,0.00039724,4]
[312604412,1706064640352,-939.67117105,0.00039724,4]
[312604413,1706064640361,-303.5928887,0.00039724,4]
[312604414,1706064640371,-650.85868959,0.00039724,4]
[312604415,1706064640380,-2117.13657461,0.00039724,4]
[312604416,1706064640389,-266.91620721,0.00039724,4]
[312604417,1706064640399,-155.31545945,0.00039724,4]
[312604418,1706064640408,-160.05138552,0.00039724,4]
[312604419,1706064640418,-881.15348469,0.00039724,4]
[312604420,1706064640427,-1588.67066985,0.00039724,4]
[312604421,1706064640437,-2974.96159229,0.00039724,2]
[312604422,1706064640446,-155.64722546,0.00039724,4]
[312604423,1706064640455,-522.75671108,0.00039724,4]
[312604424,1706064640464,-155.5427162,0.00039724,4]
[312604425,1706064640473,-167.52339516,0.00039724,4]
[312604426,1706064640482,-263.60187609,0.00039724,4]
[312604427,1706064640491,-2859.45135237,0.00039724,4]
[312604428,1706064640501,-278.20987587,0.00039724,4]
[312604430,1706064640510,-275.70531393,0.00039724,4]
[312604432,1706064640519,-155.48212524,0.00039724,4]
[312604434,1706064640528,-294.27364402,0.00039724,4]
[312604436,1706064640537,-244.24867804,0.00039724,4]
[312604437,1706064640546,-155.36086054,0.00039724,4]
[312604438,1706064640556,-3150.2743929,0.00039724,4]
[312604440,1706064640565,-2375.08419969,0.00039724,2]
[312604442,1706064640575,-4777.64557083,0.00039724,4]
[312604444,1706064640584,-155.35445351,0.00039724,4]
[312604445,1706064640593,-465.54295626,0.00039724,8]
[312604446,1706064640602,-574.603893,0.00039724,2]
[312604447,1706064640611,-574.603893,0.00039724,2]
[312604448,1706064640621,-151.0,0.00039724,2]
[312604449,1706064640630,-151.0,0.00039724,2]
[312604450,1706064640640,-151.969567,0.00039725,2]
[312604451,1706064640649,-151.0,0.00039725,2]
[312604452,1706064640658,-574.603893,0.00039725,2]
[312604453,1706064640668,-574.603893,0.00039725,2]
[312604454,1706064640678,-173.450673,0.00039725,2]
[312604455,1706064640688,-2716.28055921,0.00039725,5]
[312604456,1706064640697,-1110.97,0.00039725,2]
[312604457,1706064640707,-500.0,0.00039726,7]
[312604458,1706064640717,-582.25053343,0.00039726,7]
[312604459,1706064640726,-500.0,0.00039726,7]
[312604461,1706064640736,-503.33303702,0.00039726,7]
[312604463,1706064640747,-500.0,0.00039726,7]
[312604464,1706064640756,-500.0,0.00039726,7]
[312604466,1706064640765,-500.0,0.00039726,7]
[312604468,1706064640775,-500.0,0.00039726,7]
[312604469,1706064640784,-471.85771821,0.00039726,7]
[312604470,1706064640793,-500.0,0.00039726,7]
[312604472,1706064640802,-500.0,0.00039726,7]
[312604474,1706064640811,-500.0,0.00039726,7]
[312604476,1706064640821,-444.42216476,0.00039726,7]
[312604477,1706064640830,-500.0,0.00039726,7]
[312604478,1706064640839,-509.32,0.00039726,7]
[312604480,1706064640848,-497.60907371,0.00039726,7]
[312604482,1706064640857,-500.0,0.00039726,7]
[312604483,1706064640867,-501.48341902,0.00039726,7]
[312604485,1706064640876,-500.0,0.00039726,7]
[312604487,1706064640885,-500.0,0.00039726,7]
[312604489,1706064640894,-500.0,0.00039726,7]
[312604491,1706064640903,-501.30314312,0.00039726,7]
[312604492,1706064640913,-500.0,0.00039726,7]
[312604493,1706064640922,-500.0,0.00039726,7]
[312604494,1706064640931,-500.0,0.00039726,7]
[312604495,1706064640940,-500.0,0.00039726,7]
[312604496,1706064640950,-500.0,0.00039726,7]
[312604497,1706064640959,-160.55980898,0.00039726,7]
[312604498,1706064640969,-255.78760165,0.00039726,7]
[312604499,1706064640978,-500.0,0.00039726,7]
[312604500,1706064640987,-500.0,0.00039726,7]
[312604501,1706064640996,-500.0,0.00039726,7]
[312604502,1706064641006,-500.0,0.00039726,7]
[312604503,1706064641015,-286.49086904,0.00039726,7]
[312604504,1706064641025,-500.0,0.00039726,7]
[312604505,1706064641034,-500.35815379,0.00039726,7]
[312604506,1706064641044,-500.0,0.00039726,7]
[312604507,1706064641053,-434.24299065,0.00039726,7]
[312604508,1706064641062,-500.0,0.00039726,7]
[312604509,1706064641072,-500.0,0.00039726,7]
[312604510,1706064641082,-500.0,0.00039726,7]
[312604511,1706064641091,-500.0,0.00039726,7]
[312604512,1706064641100,-500.0,0.00039726,7]
[312604513,1706064641109,-1047.91,0.00039726,2]
[312604514,1706064641118,-500.0,0.00039726,7]
[312604515,1706064641127,-500.0,0.00039726,7]
[312604516,1706064641138,-500.0,0.00039726,7]
[312604517,1706064641147,-500.0,0.00039726,7]
[312604518,1706064641156,-500.0,0.00039726,7]
[312604519,1706064641165,-500.0,0.00039726,7]
[312604520,1706064641174,-500.0,0.00039726,7]
[312604521,1706064641183,-500.0,0.00039726,7]
[312604522,1706064641193,-503.26931155,0.00039726,7]
[312604523,1706064641202,-500.0,0.00039726,7]
[312604524,1706064641211,-350.14135761,0.00039726,7]
[312604525,1706064641221,-500.0,0.00039726,7]
[312604526,1706064641230,-634.10469583,0.00039726,7]
[312604527,1706064641240,-193.85868121,0.00039726,7]
[312604528,1706064641249,-500.0,0.00039726,7]
[312604529,1706064641259,-500.0,0.00039726,7]
[312604530,1706064641268,-500.0,0.00039726,7]
[312604531,1706064641277,-299.94372246,0.00039726,7]
[312604532,1706064641286,-500.0,0.00039726,7]
[312604533,1706064641295,-150.0,0.00039726,7]
[312604534,1706064641305,-501.94473034,0.00039726,7]
[312604535,1706064641314,-501.35406934,0.00039726,7]
[312604536,1706064641326,-500.0,0.00039726,7]
[312604537,1706064641335,-1000.0,0.00039726,2]
[312604538,1706064641344,-500.0,0.00039726,7]
[312604539,1706064641353,-500.0,0.00039726,7]
[312604540,1706064641363,-500.0,0.00039726,7]
[312604541,1706064641372,-500.0,0.00039726,7]
[312604542,1706064641382,-592.14,0.00039726,7]
[312604543,1706064641391,-1000.0,0.00039726,2]
[312604544,1706064641402,-500.0,0.00039726,7]
[312604545,1706064641410,-500.0,0.00039726,7]
[312604547,1706064641420,-500.0,0.00039726,7]
[312604548,1706064641429,-500.0,0.00039726,7]
[312604549,1706064641438,-811.86,0.00039726,7]
[312604550,1706064641447,-500.0,0.00039726,7]
[312604551,1706064641457,-500.0,0.00039726,7]
[312604552,1706064641466,-1219.16,0.00039726,7]
[312604553,1706064641475,-500.0,0.00039726,7]
[312604554,1706064641485,-502.47802447,0.00039726,7]
[312604556,1706064641494,-1330.04,0.00039726,7]
[312604558,1706064641503,-500.0,0.00039726,7]
[312604559,1706064641512,-589.82,0.00039726,7]
[312604561,1706064641521,-500.0,0.00039726,7]
[312604563,1706064641531,-500.0,0.00039726,7]
[312604565,1706064641540,-500.0,0.00039726,7]
[312604567,1706064641549,-500.0,0.00039726,7]
[312604569,1706064641558,-548.44,0.00039726,7]
[312604570,1706064641567,-500.0,0.00039726,7]
[312604572,1706064641578,-500.0,0.00039726,7]
[312604573,1706064641587,-167.69765128,0.00039726,7]
[312604574,1706064641597,-180.09544121,0.00039726,7]
[312604576,1706064641606,-500.0,0.00039726,7]
[312604578,1706064641615,-500.0,0.00039726,7]
[312604580,1706064641624,-883.11,0.00039726,7]
[312604582,1706064641634,-500.0,0.00039726,7]
[312604584,1706064641643,-500.0,0.00039726,7]
[312604586,1706064641652,-500.0,0.00039726,7]
[312604590,1706064641661,-579.24,0.00039726,7]
[312604591,1706064641757,-547.18,0.00039726,7]
[312604592,1706064641766,-217.34813323,0.00039726,5]
[312604593,1706064641775,-500.0,0.00039726,7]
[312604594,1706064641784,-501.81850201,0.00039726,7]
[312604595,1706064641793,-500.0,0.00039726,7]
[312604596,1706064641803,-298.02232849,0.00039726,7]
[312604597,1706064641812,-669.85,0.00039726,7]
[312604598,1706064641821,-509.12933367,0.00039726,7]
[312604599,1706064641830,-500.0,0.00039726,7]
[312604600,1706064641839,-513.85678705,0.00039726,7]
[312604601,1706064641876,-158.100826,0.00031464,2]
[312604602,1706064641886,-15.50321295,0.00039726,7]
[312604603,1706064641895,-604.87364955,0.00039726,7]
[312604604,1706064641904,-500.0,0.00039726,7]
[312604605,1706064641914,-500.0,0.00039726,7]
[312604606,1706064641924,-500.0,0.00039726,7]
[312604607,1706064641933,-844.33,0.00039726,7]
[312604608,1706064641942,-500.0,0.00039726,7]
[312604609,1706064641952,-500.0,0.00039726,7]
[312604610,1706064641961,-100.44511115,0.00039726,7]
[312604611,1706064641972,-211.83408707,0.00039726,7]
[312604612,1706064641982,-364.24615593,0.00039726,7]
[312604613,1706064641991,-775.39,0.00039726,7]
[312604614,1706064642000,-501.19671731,0.00039726,7]
[312604615,1706064642010,-783.35,0.00039726,7]
[312604616,1706064642019,-500.0,0.00039726,7]
[312604617,1706064642028,-692.76,0.00039726,7]
[312604618,1706064642037,-500.0,0.00039726,7]
[312604619,1706064642046,-500.0,0.00039726,7]
[312604620,1706064642055,-501.65040827,0.00039726,7]
[312604621,1706064642064,-500.0,0.00039726,7]
[312604622,1706064642076,-636.33969313,0.00039726,7]
[312604623,1706064642085,-500.0,0.00039726,7]
[312604624,1706064642095,-500.0,0.00039726,7]
[312604625,1706064642104,-570.18,0.00039726,7]
[312604626,1706064642113,-704.24,0.00039726,7]
[312604627,1706064642123,-158.89265375,0.00039726,7]
[312604662,1706064646550,-700.24990417,0.00031463,4]
[312604664,1706064646560,-199.2894744,0.00032078,2]
[312604666,1706064646569,-545.34734625,0.00039726,7]
[312604667,1706064646579,-704.24,0.00039726,7]
[312604668,1706064646587,-704.24,0.00039726,7]
[312604669,1706064646596,-704.24,0.00039726,7]
[312604670,1706064646605,-704.24,0.00039726,7]
[312604671,1706064646615,-704.24,0.00039726,7]
[312604672,1706064646624,-704.24,0.00039726,7]
[312604673,1706064646633,-704.24,0.00039726,7]
[312604674,1706064646641,-704.24,0.00039726,7]
[312604675,1706064646650,-2697.39,0.00039726,7]
[312604676,1706064646659,-708.39,0.00039726,7]
[312604677,1706064646669,-513.91,0.00039726,7]
[312604678,1706064646678,-500.0,0.00039726,7]
[312604679,1706064646687,-500.0,0.00039726,7]
[312604680,1706064646696,-502.9237267,0.00039726,7]
[312604681,1706064646706,-500.0,0.00039726,7]
[312604682,1706064646715,-500.0,0.00039726,7]
[312604683,1706064646724,-507.74855922,0.00039726,7]
[312604684,1706064646733,-500.0,0.00039726,7]
[312604685,1706064646742,-583.1,0.00039726,7]
[312604686,1706064646751,-500.0,0.00039726,7]
[312604687,1706064646760,-502.68021708,0.00039726,7]
[312604688,1706064646769,-1065.86,0.00039726,7]
[312604689,1706064646779,-2138.57,0.00039726,7]
[312604690,1706064646789,-712.39,0.00039726,7]
[312604691,1706064646798,-500.0,0.00039726,7]
[312604692,1706064646807,-500.0,0.00039726,7]
[312604693,1706064646817,-500.0,0.00039726,7]
[312604694,1706064646826,-500.0,0.00039726,7]
[312604695,1706064646835,-500.72142636,0.00039726,7]
[312604696,1706064646845,-501.08767058,0.00039726,7]
[312604697,1706064646855,-545.24,0.00039726,7]
[312604698,1706064646865,-781.6,0.00039726,7]
[312604699,1706064646874,-500.0,0.00039726,7]
[312604700,1706064646884,-1231.7,0.00039726,7]
[312604701,1706064646894,-500.0,0.00039726,7]
[312604702,1706064646903,-500.0,0.00039726,7]
[312604703,1706064646913,-1000.0,0.00039726,2]
[312604704,1706064646922,-500.0,0.00039726,7]
[312604705,1706064646931,-3315.75,0.00039726,7]
[312604706,1706064646940,-2190.79,0.00039726,7]
[312604707,1706064646949,-276.0710938,0.00039726,7]
[312604708,1706064649100,-200.0,0.0004,120]
[312604710,1706064655347,295.12220852,0.00022,4]
[312604712,1706064695175,-253.8143188,0.0004,120]
[312604713,1706064695202,-106.1856812,0.0004,120]
[312604767,1706065637092,-166.666666,0.00023259,2]
[312604768,1706065641112,-354.5193341,0.00023259,2]
[312604769,1706065641132,-818.67757888,0.0002326,2]
[312604770,1706065641152,-154.82968734,0.00023261,2]
[312604771,1706065641175,-12125.9714649,0.00023285,2]
[312604773,1706065750085,-329.75,0.00023275,3]
[312604774,1706065750141,-19291.76454874,0.00023285,2]
[312604775,1706065750168,-794.63277407,0.00023285,2]
[312604776,1706065750190,-588.07424172,0.00023285,2]
[312604777,1706065750214,-183.27940965,0.00023285,2]
[312604778,1706065750237,-154.97398562,0.00023285,2]
[312604779,1706065750264,-343.09681091,0.00023285,2]
[312604780,1706065750290,-1856.95722929,0.00023285,2]
[312604781,1706065756095,-34208.55736941,0.00023285,2]
[312604878,1706065838727,-10202.84952288,0.00023285,2]
[312604879,1706065838771,-22000.69999999,0.00023285,2]
[312604905,1706065841791,-216084.08411834,0.00023285,2]
[312604906,1706065841801,-1114.82223446,0.00023285,2]
[312604907,1706065841810,-154.97188045,0.00023285,2]
[312604908,1706065841819,-3226.55720631,0.00023285,2]
[312604909,1706065841952,-154.95704265,0.00023285,2]
[312604910,1706065841962,-620.6669279,0.00023285,2]
[312604911,1706065841972,-548.10984714,0.00023285,2]
[312604912,1706065841981,-1109.98253014,0.00023285,2]
[312604913,1706065841991,-182.90507862,0.00023285,2]
[312604914,1706065842001,-170.41849621,0.00023285,2]
[312604915,1706065842010,-343.09681091,0.00023285,2]
[312604916,1706065842019,-513.09795641,0.00023285,2]
[312604917,1706065842030,-173.760204,0.00023488,2]
[312604918,1706065842040,-166.666666,0.0002476,2]
[312604919,1706065842050,-24900.0,0.0002503,2]
[312604920,1706065842060,-1567.2786229,0.00025191,2]
[312604921,1706065842069,-250.0,0.00025192,2]
[312604922,1706065842078,-890.1973123,0.00025409,2]
[312604923,1706065842088,-166.666666,0.00025435,2]
[312604924,1706065842097,-273.0532813,0.00025444,2]
[312604925,1706065842107,-166.666666,0.0002611,2]
[312604926,1706065842117,-154.82968734,0.00026783,2]
[312604927,1706065842127,-521.1860001,0.00026783,2]
[312604928,1706065842137,-818.67757888,0.00026784,2]
[312604929,1706065842147,-166.666666,0.00026785,2]
[312604930,1706065842157,-166.666666,0.0002746,2]
[312604931,1706065842166,-9208.31477254,0.000275,2]
[312604932,1706065842176,-1867.02831608,0.00027612,2]
[312604933,1706065842185,-200.15264511,0.00027612,2]
[312604934,1706065842194,-4122.62625814,0.00028,2]
[312604935,1706065842203,-166.666666,0.00028135,2]
[312604936,1706065842212,-2158.86064998,0.0002979,7]
[312604937,1706065842221,-4146.09720047,0.0003,30]
[312604938,1706065842230,-933.59135,0.0003,2]
[312604939,1706065842239,-48716.26002163,0.0003,4]
[312604940,1706065842251,-329.7518327,0.0003,4]
[312604953,1706065844336,-3299.02099088,0.0003,4]
[312604954,1706065844394,-647.19209226,0.0003,4]
[312604955,1706065844443,-154.89238007,0.0003,4]
[312605073,1706066740088,-616.92156387,0.00021909,2]
[312605074,1706066740112,-260.95376915,0.0002191,2]
[312605075,1706066740132,-818.67757888,0.00021911,2]
[312605076,1706066740153,-166.666666,0.00021918,2]
[312605077,1706066740173,-154.82968734,0.00022,2]
[312605078,1706066740192,-2569.01547959,0.00022279,2]
[312605081,1706066825096,-1972.36694903,0.00021902,2]
[312605082,1706066957102,-172.990764,0.00021047,2]
[312605083,1706066960095,-622.6722025,0.00021047,2]